fUST/lending_fUST_20250104
["ID","MTS","AMOUNT","RATE_DAILY","PERIOD"]
[347589678,1735932640514,-500.0,0.00019451,3]
[347589681,1735932640523,-500.0,0.00019451,2]
[347589683,1735932640531,-366.20200702,0.00019451,2]
[347589685,1735932640540,-199.20007994,0.00019451,2]
[347589687,1735932640548,-151.0,0.00019452,2]
[347589688,1735932640555,-151.0,0.00019452,2]
[347589690,1735932640563,-500.0,0.00019452,3]
[347589692,1735932640570,-500.0,0.00019452,3]
[347589695,1735932640579,-637.88,0.00019452,3]
[347589697,1735932640587,-500.0,0.00019452,3]
[347589699,1735932640597,-500.0,0.00019452,3]
[347589700,1735932640606,-500.0,0.00019452,3]
[347589701,1735932640616,-500.0,0.00019452,3]
[347589702,1735932640626,-503.01927023,0.00019452,3]
[347589703,1735932640635,-500.0,0.00019452,3]
[347589704,1735932640644,-500.0,0.00019452,3]
[347589705,1735932640652,-535.16398584,0.00019452,3]
[347589707,1735932640661,-500.0,0.00019452,3]
[347589709,1735932640670,-500.0,0.00019452,3]
[347589710,1735932640677,-294.7583025,0.00019452,3]
[347589712,1735932640684,-500.0,0.00019452,3]
[347589714,1735932640692,-500.0,0.00019452,3]
[347589716,1735932640699,-503.72974484,0.00019452,3]
[347589717,1735932640705,-500.0,0.00019452,3]
[347589719,1735932640711,-500.0,0.00019452,3]
[347589721,1735932640719,-500.0,0.00019452,3]
[347589723,1735932640728,-500.0,0.00019452,3]
[347589725,1735932640737,-500.0,0.00019452,3]
[347589727,1735932640746,-500.0,0.00019452,3]
[347589729,1735932640754,-500.0,0.00019452,3]
[347589731,1735932640762,-500.0,0.00019452,3]
[347589732,1735932640770,-500.0,0.00019452,3]
[347589735,1735932640779,-508.25381816,0.00019452,3]
[347589737,1735932640788,-500.0,0.00019452,3]
[347589739,1735932640797,-500.0,0.00019452,3]
[347589741,1735932640805,-656.33,0.00019452,3]
[347589743,1735932640813,-500.0,0.00019452,3]
[347589745,1735932640821,-500.0,0.00019452,3]
[347589747,1735932640829,-612.23,0.00019452,3]
[347589749,1735932640837,-580.66,0.00019452,3]
[347589751,1735932640844,-500.0,0.00019452,3]
[347589753,1735932640852,-500.0,0.00019452,3]
[347589755,1735932640861,-500.0,0.00019452,3]
[347589757,1735932640869,-500.0,0.00019452,3]
[347589759,1735932640876,-500.0,0.00019452,3]
[347589761,1735932640885,-500.0,0.00019452,3]
[347589763,1735932640894,-500.0,0.00019452,3]
[347589766,1735932640905,-500.0,0.00019452,3]
[347589768,1735932640914,-500.0,0.00019452,3]
[347589770,1735932640923,-500.0,0.00019452,3]
[347589772,1735932640931,-500.0,0.00019452,3]
[347589774,1735932640939,-219.71367862,0.00019452,3]
[347589776,1735932640947,-500.0,0.00019452,3]
[347589778,1735932640956,-500.0,0.00019452,3]
[347589779,1735932640964,-500.0,0.00019452,3]
[347589781,1735932640974,-500.0,0.00019452,3]
[347589783,1735932640986,-323.87287048,0.00019452,3]
[347589785,1735932640995,-500.0,0.00019452,3]
[347589787,1735932641004,-503.24660531,0.00019452,3]
[347589789,1735932641013,-500.0,0.00019452,3]
[347589791,1735932641023,-500.0,0.00019452,3]
[347589793,1735932641033,-864.58,0.00019452,3]
[347589795,1735932641043,-500.0,0.00019452,3]
[347589797,1735932641051,-500.0,0.00019452,3]
[347589799,1735932641061,-1023.38,0.00019452,3]
[347589801,1735932641069,-500.0,0.00019452,3]
[347589803,1735932641078,-832.63,0.00019452,3]
[347589805,1735932641088,-500.0,0.00019452,3]
[347589806,1735932641095,-523.55,0.00019452,3]
[347589808,1735932641104,-500.0,0.00019452,3]
[347589810,1735932641114,-500.0,0.00019452,3]
[347589812,1735932641123,-500.0,0.00019452,3]
[347589815,1735932641136,-500.0,0.00019452,3]
[347589817,1735932641148,-500.0,0.00019452,3]
[347589818,1735932641156,-606.47,0.00019452,3]
[347589820,1735932641164,-500.0,0.00019452,3]
[347589822,1735932641174,-500.0,0.00019452,3]
[347589825,1735932641184,-737.74,0.00019452,3]
[347589827,1735932641193,-500.0,0.00019452,3]
[347589829,1735932641201,-500.0,0.00019452,3]
[347589831,1735932641209,-151.0,0.00019452,2]
[347589833,1735932641218,-500.0,0.00019452,3]
[347589835,1735932641228,-500.0,0.00019452,3]
[347589837,1735932641235,-500.0,0.00019452,3]
[347589839,1735932641243,-500.0,0.00019452,3]
[347589841,1735932641251,-500.0,0.00019452,3]
[347589843,1735932641259,-425.18890014,0.00019452,3]
[347589845,1735932641269,-500.0,0.00019452,3]
[347589847,1735932641278,-212.149692,0.00019452,2]
[347589849,1735932641287,-500.0,0.00019452,3]
[347589852,1735932641297,-500.0,0.00019452,3]
[347589854,1735932641305,-212.149692,0.00019452,2]
[347589856,1735932641314,-500.0,0.00019452,3]
[347589858,1735932641322,-833.62,0.00019452,3]
[347589860,1735932641331,-500.0,0.00019452,3]
[347589862,1735932641338,-500.0,0.00019452,3]
[347589864,1735932641345,-947.07,0.00019452,3]
[347589866,1735932641352,-216.721026,0.00019452,2]
[347589868,1735932641361,-216.721026,0.00019452,2]
[347589870,1735932641369,-500.0,0.00019452,3]
[347589872,1735932641377,-7437.04,0.00019452,3]
[347589874,1735932641388,-500.0,0.00019452,3]
[347589876,1735932641396,-883.27,0.00019452,3]
[347589878,1735932641403,-1092.99,0.00019452,3]
[347589879,1735932641410,-500.0,0.00019452,3]
[347589882,1735932641418,-500.0,0.00019452,3]
[347589884,1735932641427,-500.0,0.00019452,3]
[347589886,1735932641435,-2480.81,0.00019452,3]
[347589888,1735932641445,-500.0,0.00019452,3]
[347589890,1735932641455,-500.0,0.00019452,3]
[347589892,1735932641464,-572.02,0.00019452,3]
[347589895,1735932641473,-500.0,0.00019452,3]
[347589897,1735932641482,-500.0,0.00019452,3]
[347589899,1735932641491,-500.0,0.00019452,3]
[347589901,1735932641499,-663.56,0.00019452,3]
[347589903,1735932641508,-500.0,0.00019452,3]
[347589905,1735932641518,-500.0,0.00019452,3]
[347589907,1735932641526,-500.0,0.00019452,3]
[347589909,1735932641535,-500.0,0.00019452,3]
[347589910,1735932641543,-500.0,0.00019452,3]
[347589922,1735932641643,-755.6,0.00019452,3]
[347589924,1735932641652,-500.0,0.00019452,3]
[347589926,1735932641661,-500.0,0.00019452,3]
[347589928,1735932641670,-504.47849293,0.00019452,3]
[347589930,1735932641679,-500.0,0.00019452,3]
[347589932,1735932641687,-35698.66,0.00019452,3]
[347589934,1735932641697,-513.8,0.00019452,3]
[347589937,1735932641705,-1101.05,0.00019452,3]
[347589939,1735932641715,-500.0,0.00019452,3]
[347589940,1735932641722,-500.0,0.00019452,3]
[347589943,1735932641731,-308.34988338,0.00019452,3]
[347589945,1735932641741,-500.0,0.00019452,3]
[347589947,1735932641750,-1515.55,0.00019452,3]
[347589949,1735932641757,-953.73,0.00019452,3]
[347589950,1735932641766,-151.0,0.00019452,2]
[347589953,1735932641775,-500.0,0.00019452,3]
[347589955,1735932641785,-500.0,0.00019452,3]
[347589957,1735932641794,-5331.84,0.00019452,3]
[347589959,1735932641802,-1341.36,0.00019452,2]
[347589961,1735932641809,-1562.44,0.00019452,3]
[347589963,1735932641817,-4436.16,0.00019452,3]
[347589965,1735932641826,-500.0,0.00019452,3]
[347589967,1735932641834,-1392.99,0.00019452,3]
[347589969,1735932641842,-500.0,0.00019452,3]
[347589971,1735932641851,-500.0,0.00019452,3]
[347589973,1735932641859,-151.0,0.00019452,2]
[347589975,1735932641867,-151.0,0.00019452,2]
[347589977,1735932641876,-4071.96,0.00019452,3]
[347589979,1735932641887,-151.0,0.00019452,2]
[347589981,1735932641895,-151.0,0.00019452,2]
[347589983,1735932641903,-500.0,0.00019452,3]
[347589985,1735932641910,-500.0,0.00019452,3]
[347589987,1735932641920,-500.0,0.00019452,3]
[347589989,1735932641928,-500.0,0.00019452,3]
[347589991,1735932641937,-500.0,0.00019452,3]
[347589993,1735932641946,-500.0,0.00019452,3]
[347589995,1735932641954,-500.0,0.00019452,3]
[347589997,1735932641962,-1475.06,0.00019452,3]
[347589999,1735932641971,-500.0,0.00019452,3]
[347590001,1735932641981,-519.2,0.00019452,3]
[347590003,1735932641992,-500.0,0.00019452,3]
[347590005,1735932642000,-505.39971729,0.00019452,3]
[347590007,1735932642010,-500.0,0.00019452,3]
[347590009,1735932642019,-500.0,0.00019452,3]
[347590011,1735932642028,-500.0,0.00019452,3]
[347590013,1735932642036,-500.0,0.00019452,3]
[347590015,1735932642044,-500.0,0.00019452,3]
[347590016,1735932642050,-500.0,0.00019452,3]
[347590018,1735932642059,-500.0,0.00019452,3]
[347590020,1735932642068,-989.54,0.00019452,3]
[347590022,1735932642075,-500.0,0.00019452,3]
[347590024,1735932642083,-500.0,0.00019452,3]
[347590026,1735932642091,-2109.39,0.00019452,3]
[347590028,1735932642099,-196.448949,0.00019452,2]
[347590029,1735932642107,-196.448949,0.00019452,2]
[347590031,1735932642115,-979.57,0.00019452,3]
[347590033,1735932642123,-196.448949,0.00019452,2]
[347590035,1735932642131,-196.448949,0.00019452,2]
[347590037,1735932642142,-500.0,0.00019452,3]
[347590039,1735932642149,-500.0,0.00019452,3]
[347590041,1735932642156,-1243.45,0.00019452,3]
[347590043,1735932642163,-500.0,0.00019452,3]
[347590045,1735932642169,-528.88,0.00019452,3]
[347590047,1735932642179,-500.0,0.00019452,3]
[347590049,1735932642187,-500.0,0.00019452,3]
[347590051,1735932642196,-500.0,0.00019452,3]
[347590053,1735932642205,-1103.73,0.00019452,3]
[347590055,1735932642213,-782.72,0.00019452,3]
[347590057,1735932642220,-151.0,0.00019452,2]
[347590059,1735932642227,-151.0,0.00019452,2]
[347590061,1735932642236,-500.0,0.00019452,3]
[347590063,1735932642245,-798.24,0.00019452,3]
[347590065,1735932642252,-500.0,0.00019452,3]
[347590067,1735932642261,-151.0,0.00019452,2]
[347590069,1735932642268,-151.0,0.00019452,2]
[347590071,1735932642276,-500.0,0.00019452,3]
[347590073,1735932642285,-500.0,0.00019452,3]
[347590075,1735932642293,-631.15,0.00019452,3]
[347590077,1735932642303,-500.0,0.00019452,3]
[347590079,1735932642311,-606.82724975,0.00019452,3]
[347590081,1735932642319,-500.0,0.00019452,3]
[347590083,1735932642328,-645.75,0.00019452,3]
[347590085,1735932642337,-3625.23,0.00019452,3]
[347590087,1735932642345,-1674.26,0.00019452,3]
[347590090,1735932642353,-502.59993012,0.00019452,3]
[347590092,1735932642363,-516.15,0.00019452,3]
[347590094,1735932642372,-524.36,0.00019452,3]
[347590096,1735932642382,-2761.88,0.00019452,3]
[347590098,1735932642392,-500.0,0.00019452,3]
[347590100,1735932642401,-500.0,0.00019452,3]
[347590102,1735932642410,-2417.19,0.00019452,3]
[347590104,1735932642417,-500.0,0.00019452,3]
[347590106,1735932642425,-500.0,0.00019452,2]
[347590108,1735932642433,-1230.59,0.00019452,3]
[347590109,1735932642440,-500.0,0.00019452,3]
[347590111,1735932642448,-500.0,0.00019452,3]
[347590113,1735932642457,-500.0,0.00019452,3]
[347590115,1735932642466,-500.0,0.00019452,3]
[347590118,1735932642474,-151.0,0.00019452,2]
[347590119,1735932642481,-1042.13,0.00019452,3]
[347590121,1735932642489,-290.117404,0.00019452,2]
[347590124,1735932642498,-1002.59,0.00019452,3]
[347590125,1735932642504,-500.0,0.00019452,3]
[347590127,1735932642513,-500.0,0.00019452,3]
[347590130,1735932642523,-156.6,0.00019452,2]
[347590132,1735932642532,-500.0,0.00019473,2]
[347590134,1735932642541,-326.76395606,0.00019473,2]
[347590136,1735932642549,-500.0,0.00019473,2]
[347590138,1735932642556,-500.0,0.00019473,2]
[347590140,1735932642565,-500.0,0.00019473,2]
[347590142,1735932642573,-151.0,0.00019473,2]
[347590144,1735932642580,-151.0,0.00019473,2]
[347590146,1735932642588,-151.0,0.00019473,2]
[347590148,1735932642597,-9684.09,0.000195,2]
[347590150,1735932642606,-151.0,0.000195,2]
[347590152,1735932642613,-854.2,0.000195,2]
[347590154,1735932642622,-151.0,0.000195,2]
[347590156,1735932642631,-151.0,0.000195,2]
[347590159,1735932642646,-151.0,0.00019504,2]
[347590162,1735932642657,-151.0,0.00019504,2]
[347590165,1735932642670,-151.0,0.00019504,2]
[347590167,1735932642682,-5279.80910164,0.00019504,2]
[347590169,1735932642690,-444.0,0.0001954,2]
[347590172,1735932642703,-708.74779242,0.00019585,2]
[347590174,1735932642716,-4604.14324062,0.000196,2]
[347590177,1735932642728,-4604.1432406,0.000196,2]
[347590180,1735932642741,-4604.1432406,0.000196,2]
[347590182,1735932642752,-4604.1432406,0.000196,2]
[347590184,1735932642761,-8194.69192998,0.000196,2]
[347590219,1735932642956,-8395.60323832,0.000196,2]
[347590221,1735932642967,-16590.2951683,0.000196,2]
[347590222,1735932642978,-16590.2951683,0.000196,2]
[347590223,1735932642992,-3291.34293933,0.000196,2]
[347590224,1735932643113,-500.0,0.00019452,3]
[347590225,1735932643124,-1853.96332237,0.000196,2]
[347590228,1735932643138,-7512.46532812,0.000196,2]
[347590263,1735932643428,-1127.7,0.000196,2]
[347590588,1735933502797,161.187251,0.00013973,2]
[347590628,1735933832871,-221.74645143,0.00015795,2]
[347590630,1735933832881,-221.74645143,0.00015955,2]
[347590632,1735933832892,-500.0,0.00016438,5]
[347590634,1735933832901,-500.0,0.0001726,7]
[347590636,1735933832912,-281.3592035,0.00017482,2]
[347590638,1735933832923,-249.5654183,0.00017548,2]
[347590640,1735933832932,-7524.0788193,0.00017898,2]
[347590642,1735933832942,-447.56156447,0.00018082,9]
[347590644,1735933832951,-300.0,0.0001816,2]
[347590646,1735933832960,-1001.7080221,0.00018162,2]
[347590648,1735933832970,-513.043,0.0001862,2]
[347590650,1735933832980,-4505.98165534,0.000189,2]
[347590652,1735933832989,-466.4770839,0.00018945,2]
[347590654,1735933832998,-470.47104412,0.00019078,2]
[347590656,1735933833008,-500.0,0.00019173,2]
[347590658,1735933833017,-500.0,0.00019173,2]
[347590660,1735933833027,-500.0,0.00019173,2]
[347590662,1735933833036,-500.0,0.00019173,2]
[347590664,1735933833046,-194.126,0.00019177,2]
[347590666,1735933833056,-300.0,0.00019177,2]
[347590668,1735933833065,-192.69387288,0.00019177,2]
[347590670,1735933833075,-500.0,0.00019177,2]
[347590672,1735933833085,-539.75959382,0.00019177,2]
[347590674,1735933833095,-633.92653056,0.00019177,2]
[347590676,1735933833105,-500.0,0.00019177,2]
[347590679,1735933833115,-500.0,0.00019177,2]
[347590681,1735933833126,-500.0,0.00019177,2]
[347590683,1735933833136,-500.0,0.00019177,2]
[347590685,1735933833146,-500.0,0.00019177,2]
[347590687,1735933833157,-500.0,0.00019177,2]
[347590689,1735933833167,-215.29750327,0.00019177,2]
[347590690,1735933833176,-500.0,0.00019177,2]
[347590692,1735933833186,-500.0,0.00019177,2]
[347590695,1735933833196,-500.0,0.00019177,2]
[347590697,1735933833208,-500.0,0.00019177,2]
[347590699,1735933833217,-513.34307262,0.00019177,2]
[347590701,1735933833228,-500.0,0.00019177,2]
[347590703,1735933833238,-500.0,0.00019177,2]
[347590705,1735933833248,-500.0,0.00019177,2]
[347590707,1735933833259,-573.616181,0.00019177,2]
[347590709,1735933833268,-500.0,0.00019177,2]
[347590711,1735933833278,-500.0,0.00019177,2]
[347590713,1735933833287,-500.0,0.00019177,2]
[347590715,1735933833296,-500.0,0.00019177,2]
[347590717,1735933833306,-500.0,0.00019177,2]
[347590719,1735933833320,-500.0,0.00019177,2]
[347590721,1735933833333,-500.0,0.00019178,2]
[347590723,1735933833343,-223.92562225,0.00019178,2]
[347590725,1735933833353,-500.0,0.00019178,2]
[347590727,1735933833362,-500.0,0.00019178,2]
[347590730,1735933833373,-503.86458562,0.00019178,2]
[347590732,1735933833384,-442.86643342,0.00019178,2]
[347590734,1735933833393,-500.0,0.00019178,2]
[347590736,1735933833406,-505.30062941,0.00019178,2]
[347590738,1735933833416,-504.68442106,0.00019178,2]
[347590740,1735933833425,-500.0,0.00019178,2]
[347590741,1735933833435,-500.0,0.00019178,2]
[347590744,1735933833444,-375.30804421,0.00019178,2]
[347590746,1735933833454,-500.0,0.00019178,2]
[347590747,1735933833464,-500.0,0.00019178,2]
[347590749,1735933833474,-500.0,0.00019178,2]
[347590752,1735933833483,-500.0,0.00019178,2]
[347590754,1735933833493,-573.99445169,0.00019178,2]
[347590756,1735933833503,-500.0,0.00019178,2]
[347590758,1735933833513,-524.11739906,0.00019178,2]
[347590760,1735933833522,-500.0,0.00019178,2]
[347590762,1735933833532,-500.0,0.00019178,2]
[347590763,1735933833541,-500.0,0.00019178,2]
[347590766,1735933833551,-500.0,0.00019178,2]
[347590768,1735933833561,-500.0,0.00019178,2]
[347590770,1735933833570,-500.0,0.00019178,2]
[347590772,1735933833580,-500.0,0.00019178,2]
[347590774,1735933833590,-501.36,0.00019178,2]
[347590776,1735933833599,-500.0,0.00019178,2]
[347590778,1735933833609,-561.21,0.00019178,2]
[347590779,1735933833621,-532.27,0.00019178,2]
[347590781,1735933833630,-292.31616873,0.00019178,2]
[347590783,1735933833640,-500.0,0.00019178,2]
[347590785,1735933833649,-500.0,0.00019178,2]
[347590787,1735933833660,-480.93907927,0.00019178,2]
[347590793,1735933833698,-19.06092073,0.00019178,2]
[347590795,1735933833708,-506.35896811,0.00019178,2]
[347590797,1735933833717,-500.0,0.00019178,2]
[347590799,1735933833727,-500.0,0.00019178,2]
[347590801,1735933833736,-500.0,0.00019178,2]
[347590803,1735933833745,-500.0,0.00019178,2]
[347590805,1735933833755,-500.0,0.00019178,2]
[347590807,1735933833765,-0.27044749,0.00019178,2]
[347590861,1735933838374,-221.74645143,0.00015637,2]
[347590863,1735933838383,-178.0807472,0.00019178,2]
[347590865,1735933838395,-321.64880531,0.00019178,2]
[347590867,1735933838406,-500.0,0.00019178,2]
[347590869,1735933838416,-500.0,0.00019178,2]
[347590871,1735933838426,-500.0,0.00019178,2]
[347590873,1735933838436,-500.0,0.00019178,2]
[347590875,1735933838445,-468.37795795,0.00019178,2]
[347590878,1735933838461,-31.62204205,0.00019178,2]
[347590880,1735933838470,-500.0,0.00019178,2]
[347590882,1735933838479,-500.0,0.00019178,2]
[347590884,1735933838489,-500.0,0.00019178,2]
[347590886,1735933838498,-596.45,0.00019178,2]
[347590888,1735933838507,-500.0,0.00019178,2]
[347590890,1735933838517,-500.0,0.00019178,2]
[347590892,1735933838526,-500.0,0.00019178,2]
[347590894,1735933838536,-495.68670623,0.00019178,2]
[347590896,1735933838545,-583.96649289,0.00019178,2]
[347590898,1735933838555,-938.09,0.00019178,2]
[347590900,1735933838564,-792.53,0.00019178,2]
[347590902,1735933838573,-500.0,0.00019178,2]
[347590904,1735933838583,-500.0,0.00019178,2]
[347590906,1735933838592,-500.0,0.00019178,2]
[347590908,1735933838602,-500.0,0.00019178,2]
[347590910,1735933838611,-500.0,0.00019178,2]
[347590912,1735933838621,-500.0,0.00019178,2]
[347590914,1735933838630,-500.0,0.00019178,2]
[347590917,1735933838639,-763.25,0.00019178,2]
[347590918,1735933838648,-555.93,0.00019178,2]
[347590920,1735933838658,-500.0,0.00019178,2]
[347590922,1735933838668,-500.0,0.00019178,2]
[347590925,1735933838678,-500.0,0.00019178,2]
[347590926,1735933838688,-529.49,0.00019178,2]
[347590928,1735933838698,-500.0,0.00019178,2]
[347590930,1735933838711,-500.0,0.00019178,2]
[347590932,1735933838722,-500.0,0.00019178,2]
[347590934,1735933838732,-268.9989584,0.00019178,2]
[347590936,1735933838741,-197.87707058,0.00019178,2]
[347590938,1735933838751,-500.0,0.00019178,2]
[347590940,1735933838760,-500.0,0.00019178,2]
[347590942,1735933838769,-500.0,0.00019178,2]
[347590944,1735933838778,-500.0,0.00019178,2]
[347590946,1735933838788,-627.58604872,0.00019178,2]
[347590948,1735933838797,-500.0,0.00019178,2]
[347590950,1735933838806,-500.0,0.00019178,2]
[347590953,1735933838815,-318.14097502,0.00019178,2]
[347590956,1735933838835,-500.0,0.00019178,2]
[347590958,1735933838845,-868.15,0.00019178,2]
[347590960,1735933838855,-125.54488625,0.00019178,2]
[347590962,1735933838868,-350.0,0.00019178,2]
[347591128,1735933840602,-24.45511375,0.00019178,2]
[347591130,1735933840613,-500.0,0.00019178,2]
[347591132,1735933840622,-11.32003879,0.00019178,2]
[347591135,1735933840635,-488.67996121,0.00019178,2]
[347591137,1735933840646,-500.0,0.00019178,2]
[347591139,1735933840655,-358.58247619,0.00019178,2]
[347591161,1735933840843,-141.41752381,0.00019178,2]
[347591163,1735933840853,-500.0,0.00019178,2]
[347591165,1735933840864,-500.0,0.00019178,2]
[347591167,1735933840873,-591.94,0.00019178,2]
[347591169,1735933840883,-809.67,0.00019178,2]
[347591171,1735933840892,-451.12484766,0.00019178,2]
[347591173,1735933840903,-500.0,0.00019178,2]
[347591175,1735933840913,-230.36563198,0.00019178,2]
[347591586,1735933846462,-1602.97047712,0.00018986,2]
[347591587,1735933846510,-1577.86433113,0.00018986,2]
[347591588,1735933846520,-41.49397287,0.00019178,2]
[347591589,1735933846531,-228.14039515,0.00019178,2]
[347591590,1735933846540,-1001.91,0.00019178,2]
[347591591,1735933846550,-573.12,0.00019178,2]
[347591592,1735933846559,-500.0,0.00019178,2]
[347591593,1735933846568,-500.0,0.00019178,2]
[347591594,1735933846577,-500.0,0.00019178,2]
[347591595,1735933846587,-500.0,0.00019178,2]
[347591596,1735933846596,-500.0,0.00019178,2]
[347591597,1735933846605,-500.0,0.00019178,2]
[347591598,1735933846615,-500.0,0.00019178,2]
[347591599,1735933846624,-500.0,0.00019178,2]
[347591600,1735933846633,-500.0,0.00019178,2]
[347591601,1735933846642,-500.0,0.00019178,2]
[347591602,1735933846652,-500.0,0.00019178,2]
[347591603,1735933846663,-500.0,0.00019178,2]
[347591604,1735933846672,-500.0,0.00019178,2]
[347591605,1735933846682,-500.0,0.00019178,2]
[347591606,1735933846691,-524.35,0.00019178,2]
[347591607,1735933846700,-500.0,0.00019178,2]
[347591608,1735933846710,-500.0,0.00019178,2]
[347591609,1735933846719,-500.0,0.00019178,2]
[347591610,1735933846730,-173.20697325,0.00019178,2]
[347591611,1735933846739,-500.0,0.00019178,2]
[347591612,1735933846748,-500.0,0.00019178,2]
[347591613,1735933846758,-500.0,0.00019178,2]
[347591614,1735933846768,-500.0,0.00019178,2]
[347591615,1735933846779,-387.96212484,0.00019178,2]
[347591616,1735933846788,-500.0,0.00019178,2]
[347591617,1735933846798,-500.0,0.00019178,2]
[347591618,1735933846809,-500.0,0.00019178,2]
[347591619,1735933846819,-500.0,0.00019178,2]
[347591620,1735933846829,-1229.58,0.00019178,2]
[347591621,1735933846838,-500.0,0.00019178,2]
[347591622,1735933846849,-500.0,0.00019178,2]
[347591623,1735933846859,-500.0,0.00019178,2]
[347591624,1735933846869,-500.0,0.00019178,2]
[347591625,1735933846879,-202.04903747,0.00019178,2]
[347591626,1735933846889,-500.0,0.00019178,2]
[347591627,1735933846900,-500.0,0.00019178,2]
[347591628,1735933846910,-522.21134252,0.00019178,2]
[347591629,1735933846919,-874.26,0.00019178,2]
[347591630,1735933846932,-500.0,0.00019178,2]
[347591631,1735933846942,-500.0,0.00019178,2]
[347591632,1735933846951,-500.0,0.00019178,2]
[347591633,1735933846961,-500.0,0.00019178,2]
[347591634,1735933846971,-500.0,0.00019178,2]
[347591635,1735933846980,-3580.41,0.00019178,2]
[347591636,1735933846990,-3869.28,0.00019178,2]
[347591637,1735933847001,-500.0,0.00019178,2]
[347591638,1735933847011,-1276.9,0.00019178,2]
[347591639,1735933847021,-500.0,0.00019178,2]
[347591640,1735933847031,-500.0,0.00019178,2]
[347591641,1735933847040,-3732.63,0.00019178,2]
[347591642,1735933847050,-500.0,0.00019178,2]
[347591643,1735933847059,-717.5,0.00019178,2]
[347591644,1735933847068,-500.0,0.00019178,2]
[347591645,1735933847078,-500.0,0.00019178,2]
[347591646,1735933847088,-500.0,0.00019178,2]
[347591647,1735933847099,-500.0,0.00019178,2]
[347591648,1735933847108,-361.84993862,0.00019178,2]
[347591649,1735933847118,-178.60237076,0.00019178,2]
[347591650,1735933847127,-500.0,0.00019178,2]
[347591651,1735933847138,-500.0,0.00019178,2]
[347591652,1735933847147,-500.0,0.00019178,2]
[347591653,1735933847157,-1352.14,0.00019178,2]
[347591654,1735933847167,-500.0,0.00019178,2]
[347591655,1735933847178,-500.0,0.00019178,2]
[347591656,1735933847187,-500.0,0.00019178,2]
[347591657,1735933847196,-500.0,0.00019178,2]
[347591658,1735933847205,-500.0,0.00019178,2]
[347591659,1735933847215,-500.0,0.00019178,2]
[347591660,1735933847224,-500.0,0.00019178,2]
[347591661,1735933847234,-500.0,0.00019178,2]
[347591662,1735933847244,-500.0,0.00019178,2]
[347591663,1735933847254,-500.0,0.00019178,2]
[347591664,1735933847264,-278.66673372,0.00019178,2]
[347591665,1735933847274,-500.0,0.00019178,2]
[347591666,1735933847284,-500.0,0.00019178,2]
[347591667,1735933847294,-411.71291516,0.00019178,2]
[347591668,1735933847307,-40.98111678,0.00019178,2]
[347591669,1735933847317,-500.0,0.00019178,2]
[347591670,1735933847330,-500.0,0.00019178,2]
[347591671,1735933847339,-907.08,0.00019178,2]
[347591672,1735933847349,-500.0,0.00019178,2]
[347591673,1735933847359,-500.0,0.00019178,2]
[347591674,1735933847369,-1933.61,0.00019178,2]
[347591675,1735933847378,-500.0,0.00019178,2]